bitfinex-derivatives/quotes_SOLF0:USTF0_20251202
["timestamp","ask_amount","ask_price","bid_price","bid_amount"]
[1764693872903,62.94,138.58,138.53,3.05]
[1764693873302,62.94,138.58,138.54,3.05]
[1764693873503,7.1001932,138.61,138.54,3.05]
[1764693873813,62.94,138.6,138.48,3.15]
[1764693874007,0.04880882,138.55,138.53,1.76764091]
[1764693874209,62.94,138.57,138.54,3.15]
[1764693874406,62.94,138.57,138.54,3.20127651]
[1764693874608,62.98544368,138.57,138.54,3.20127651]
[1764693875008,62.98544368,138.57,138.54,0.05127651]
[1764693875811,62.98544368,138.57,138.54,3.20127651]
[1764693877811,0.04544368,138.57,138.54,3.20127651]
[1764693878012,0.04544368,138.57,138.56,3.15]
[1764693878810,62.94,138.6,138.56,3.15]
[1764693879012,62.94,138.6,138.54,3.09127651]
[1764693879312,7.1001932,138.62,138.55,4.81003008]
[1764693879519,62.94,138.61,138.55,3.04]
[1764693879910,0.05174659,138.59,138.57,0.05532761]
[1764693881521,0.05174659,138.59,138.57,3.09532761]
[1764693882921,62.97174659,138.59,138.57,3.09532761]
[1764693883725,0.05174659,138.59,138.57,3.09532761]
[1764693886621,0.05174659,138.59,138.58,4.81083723]
[1764693887021,0.05174659,138.59,138.58,3.04]
[1764693887222,86.58,138.67,138.58,3.04]
[1764693887424,62.92,138.65,138.61,3.04]
[1764693888231,0.05228699,138.64,138.62,0.04890784]
[1764693888527,62.95228699,138.64,138.62,0.04890784]
[1764693888825,22.03115986,138.73,138.62,3.08890784]
[1764693889031,22.03115986,138.73,138.57,8.70646128]
[1764693889032,7.1001932,138.73,138.64,3.04]
[1764693889223,7.1001932,138.73,138.65,1.76775435]
[1764693889528,62.9,138.72,138.65,4.80775435]
[1764693889831,62.9,138.72,138.65,3.04]
[1764693890026,13.63537749,138.7,138.67,0.04845938]
[1764693890329,0.05413154,138.7,138.67,0.05209177]
[1764693892735,62.9,138.69,138.67,0.05209177]
[1764693895032,62.88,138.68,138.67,0.05209177]
[1764693895431,62.88,138.68,138.67,0.00209177]
[1764693895639,165.2718,138.68,138.57,3.04]
[1764693895939,12.07504019,138.66,138.6,3.04]
[1764693896245,62.88,138.65,138.61,1.76123305]
[1764693896442,62.88,138.65,138.62,3.04]
[1764693896647,0.04620368,138.64,138.62,3.09388275]
[1764693897535,62.92620368,138.64,138.62,3.09388275]
[1764693898750,62.92620368,138.64,138.62,0.05388275]
[1764693899535,69.41810368,138.64,138.62,0.05388275]
[1764693900141,6.4926,138.62,138.56,3.04]
[1764693900340,100.9945,138.62,138.5,3.04]
[1764693900545,100.9779,138.64,138.55,4.80255622]
[1764693900745,100.9779,138.64,138.48,21.68759921]
[1764693900746,62.86,138.61,138.56,3.04]
[1764693900941,62.86,138.6,138.57,3.04]
[1764693901141,12.07504019,138.65,138.57,3.04]
[1764693901352,107.51742019,138.7,138.57,3.04]
[1764693901353,113.01204019,138.7,138.59,3.04]
[1764693901653,113.01204019,138.7,138.51,126.22841973]
[1764693901654,113.03444019,138.67,138.6,4.80173179]
[1764693901955,6.4918,138.64,138.53,3.04]
[1764693902156,6.4918,138.64,138.57,1.76386796]
[1764693902344,0.05147019,138.62,138.59,0.04600562]
[1764693902845,6.54407019,138.62,138.59,0.04600562]
[1764693903151,69.353,138.61,138.59,0.04600562]
[1764693903345,165.3031,138.61,138.47,3.04]
[1764693903548,163.8631,138.61,138.53,1.76843423]
[1764693904145,62.86,138.61,138.53,1.76843423]
[1764693904345,0.04670514,138.58,138.56,0.05096593]
[1764693904943,62.90670514,138.58,138.56,3.09096593]
[1764693905549,12.07504019,138.67,138.57,3.04]
[1764693905757,62.86,138.66,138.58,1.76805078]
[1764693905948,62.86,138.66,138.59,4.80795065]
[1764693905949,69.3506,138.66,138.59,4.80795065]
[1764693906157,69.3506,138.66,138.59,3.04]
[1764693906656,0.04985625,138.64,138.61,0.05516649]
[1764693907557,6.54145625,138.64,138.61,0.05516649]
[1764693907852,0.04985625,138.64,138.61,0.05516649]
[1764693908051,6.54135625,138.64,138.61,0.05516649]
[1764693908248,62.88,138.63,138.61,0.05516649]
[1764693909252,69.3722,138.63,138.61,0.05516649]
[1764693910258,6.4922,138.63,138.61,0.05516649]
[1764693910452,62.88,138.62,138.61,0.05516649]
[1764693914954,6.4933,138.6,138.52,3.06]
[1764693915154,6.4933,138.6,138.54,1.77611012]
[1764693915461,62.88,138.62,138.56,3.06]
[1764693915462,6.4926,138.62,138.56,3.06]
[1764693915657,62.86,138.61,138.57,1.77527194]
[1764693915859,62.86,138.61,138.58,3.06]
[1764693916062,0.05155604,138.6,138.58,0.05484091]
[1764693916860,6.54485604,138.6,138.58,0.05484091]
[1764693917766,0.05155604,138.6,138.58,0.05484091]
[1764693918762,6.54485604,138.6,138.58,0.05484091]
[1764693919163,0.05155604,138.6,138.58,0.05484091]
[1764693919362,6.54485604,138.6,138.58,0.05484091]
[1764693920562,118.0,138.59,138.58,0.05484091]
[1764693924266,0.05155604,138.6,138.58,0.05484091]
[1764693924465,62.88,138.59,138.58,0.05484091]
[1764693928066,62.88,138.59,138.52,23.13]
[1764693928476,163.8976,138.59,138.52,23.13]
[1764693928668,6.4961,138.54,138.52,23.13]
[1764693928863,12.07504019,138.56,138.52,23.13]
[1764693929062,62.92851011,138.55,138.53,3.10029984]
[1764693930276,0.04851011,138.55,138.53,3.10029984]
[1764693930477,62.88,138.58,138.55,3.06]
[1764693930875,62.88,138.58,138.57,3.06]
[1764693931571,62.88,138.6,138.58,3.06]
[1764693932465,62.92701049,138.6,138.58,3.11292278]
[1764693933981,62.92701049,138.6,138.58,0.05292278]
[1764693934478,69.42041049,138.6,138.58,0.05292278]
[1764693938172,62.86,138.59,138.58,0.05292278]
[1764693940784,0.04701049,138.6,138.58,3.27292278]
[1764693941084,62.86,138.59,138.58,3.27292278]
[1764693942386,62.86,138.59,138.58,0.05292278]
[1764693943087,62.86,138.59,138.58,3.27292278]
[1764693944080,0.04701049,138.6,138.58,3.27292278]
[1764693944286,62.86,138.62,138.6,3.22]
[1764693945192,62.91151901,138.62,138.6,3.26767944]
[1764693945690,62.91151901,138.62,138.6,0.04767944]
[1764693945993,62.91151901,138.62,138.6,3.26767944]
[1764693947996,0.05151901,138.62,138.6,3.26767944]
[1764693948781,0.05151901,138.62,138.6,0.04767944]
[1764693956186,6.54391901,138.62,138.56,3.22]
[1764693956383,0.05151901,138.62,138.57,5.0011674]
[1764693956582,0.05151901,138.62,138.57,3.22]
[1764693957300,6.54381901,138.62,138.58,0.05480626]
[1764693957595,0.05151901,138.62,138.58,0.05480626]
[1764693958596,6.493,138.61,138.58,0.05480626]
[1764693959097,0.05151901,138.62,138.58,0.05480626]
[1764693959991,6.4929,138.61,138.58,0.05480626]
[1764693960490,3.03164083,138.59,138.54,18.82]
[1764693960686,3.03164083,138.55,138.54,18.82]
[1764693960988,122.6311,138.61,138.54,18.82]
[1764693960989,6.72883846,138.68,138.55,3.22]
[1764693961198,13.2804761,138.72,138.55,3.22]
[1764693961199,8.85365073,138.81,138.68,3.22]
[1764693961391,17.70730147,138.87,138.75,3.22]
[1764693961392,0.04637592,138.76,138.75,3.22]
[1764693961592,65.87164083,138.76,138.74,0.05134807]
[1764693961787,65.91973006,138.76,138.68,3.22]
[1764693961986,3.03164083,138.75,138.71,4.9913776]
[1764693962301,3.03164083,138.75,138.71,3.22]
[1764693962496,62.88808923,138.76,138.69,6.64727881]
[1764693962795,0.04808923,138.76,138.67,9.86727881]
[1764693962986,0.05495344,138.73,138.71,0.03162944]
[1764693963190,0.05495344,138.73,138.67,9.86727881]
[1764693963402,0.05495344,138.73,138.61,100.9993]
[1764693963403,62.9,138.72,138.69,3.22]
[1764693963605,62.9,138.71,138.69,3.22]
[1764693964008,62.9,138.71,138.68,3.22]
[1764693964215,62.94725019,138.71,138.66,3.22]
[1764693964693,62.94725019,138.71,138.67,4.99075085]
[1764693964694,62.88,138.7,138.67,4.99075085]
[1764693964889,0.04725019,138.71,138.67,3.22]
[1764693965089,62.88,138.7,138.69,3.22]
[1764693965297,0.04725019,138.71,138.68,3.22]
[1764693965503,62.88,138.7,138.68,3.22]
[1764693966308,62.88,138.69,138.68,3.22]
[1764693967403,0.04725019,138.71,138.68,3.22]
[1764693967701,86.56,138.82,138.7,3.22]
[1764693967900,86.56,138.82,138.76,3.22]
[1764693968102,62.88,138.81,138.78,3.22]
[1764693968295,7.08633369,138.88,138.78,3.22]
[1764693968604,7.08633369,138.88,138.82,0.04725019]
[1764693968605,0.04541543,138.84,138.82,0.04725019]
[1764693969204,0.04541543,138.84,138.82,3.21725019]
[1764693969402,62.88,138.85,138.82,3.21725019]
[1764693969603,62.88,138.85,138.84,3.17]
[1764693969792,107.84953369,138.94,138.84,3.17]
[1764693970105,107.84953369,138.94,138.8,6.62252877]
[1764693970106,62.86,138.93,138.85,4.92566695]
[1764693970301,62.86,138.93,138.85,3.17]
[1764693970508,0.04991238,138.9,138.88,0.05010444]
[1764693971106,62.86,138.89,138.88,0.05010444]
[1764693971403,62.86,138.95,138.89,3.17]
[1764693971598,62.86,138.95,138.85,3.17]
[1764693971798,62.86,138.95,138.87,1.74771971]
[1764693972100,62.86,138.95,138.88,1.74771971]
[1764693972303,0.05344382,138.93,138.9,0.0508355]
[1764693972897,62.88,138.92,138.9,0.0508355]
[1764693973110,62.86,138.92,138.9,3.2208355]
[1764693973312,62.93344382,138.93,138.9,3.2208355]
[1764693974506,62.93344382,138.93,138.9,0.0508355]
[1764693975208,62.84,138.92,138.9,0.0508355]
[1764693977306,62.82,138.91,138.9,0.0508355]
[1764693977615,62.82,138.91,138.9,3.2208355]
[1764693977803,62.82,138.92,138.9,3.2208355]
[1764693978005,7.08633369,138.98,138.9,0.0508355]
[1764693978312,62.82,138.97,138.9,0.0508355]
[1764693978619,62.82,138.96,138.9,0.0508355]
[1764693978813,6.4754,138.99,138.9,0.0508355]
[1764693978814,0.04796487,138.94,138.9,0.0508355]
[1764693979014,62.8,138.93,138.91,0.04709533]
[1764693980418,0.04796487,138.94,138.91,0.04709533]
[1764693980813,62.8,138.93,138.91,0.04709533]
[1764693981920,7.08633369,138.92,138.88,19.72]
[1764693982126,7.08633369,138.92,138.87,23.51741763]
[1764693982127,7.08633369,138.89,138.87,23.51741763]
[1764693982520,7.08633369,138.89,138.8,3.17]
[1764693982722,7.08633369,138.89,138.83,1.73068255]
[1764693983122,0.04922115,138.87,138.85,0.05144606]
[1764693983316,62.8,138.86,138.85,0.05144606]
[1764693984217,62.78,138.86,138.85,0.05144606]
[1764693984623,62.82922115,138.87,138.85,4.66144606]
[1764693984829,62.82922115,138.87,138.85,0.05144606]
[1764693985617,69.91555484,138.87,138.85,0.05144606]
[1764693986123,102.2602,138.86,138.79,12.74]
[1764693986334,7.08633369,138.84,138.79,12.74]
[1764693986721,6.4833,138.82,138.79,12.74]
[1764693986926,62.78,138.81,138.79,12.74]
[1764693987124,62.78,138.81,138.79,12.79271227]
[1764693987633,62.78,138.8,138.79,12.79271227]
[1764693988128,0.05465549,138.82,138.79,15.96271227]
[1764693988326,62.78,138.81,138.79,15.96271227]
[1764693988520,0.05465549,138.82,138.8,3.17]
[1764693988721,62.78,138.81,138.8,3.17]
[1764693989016,62.78,138.81,138.79,12.79271227]
[1764693989422,0.05465549,138.82,138.79,15.96271227]
[1764693989727,62.78,138.81,138.79,15.96271227]
[1764693990027,62.78,138.81,138.8,3.17]
[1764693990822,0.05465549,138.82,138.8,3.17]
[1764693991131,62.81465549,138.82,138.8,3.17]
[1764693991435,7.08633369,138.92,138.82,3.17]
[1764693991635,7.08633369,138.92,138.84,1.73420994]
[1764693991636,62.78,138.91,138.84,1.73420994]
[1764693991835,62.78,138.91,138.82,3.17]
[1764693992145,7.08633369,138.92,138.84,1.73295317]
[1764693992328,62.78,138.91,138.84,4.90295317]
[1764693992528,0.0519912,138.89,138.86,3.22178846]
[1764693992724,0.0519912,138.89,138.86,0.05178846]
[1764693994236,62.8319912,138.89,138.86,3.06178846]
[1764693994833,200.0885,139.0,138.86,3.06178846]
[1764693994834,62.76,138.99,138.89,3.01]
[1764693995040,62.76,138.99,138.93,1.73087793]
[1764693995243,62.76,138.99,138.91,3.01]
[1764693995542,62.76,138.99,138.88,3.01]
[1764693995740,69.2353,138.99,138.9,1.73242377]
[1764693995948,0.05509886,138.95,138.92,0.05349501]
[1764693996143,7.08633369,138.94,138.85,3.01]
[1764693996441,100.7754,138.92,138.8,3.01]
[1764693996640,100.7754,138.92,138.84,1.73566707]
[1764693996837,100.7918,138.9,138.83,1.73566707]
[1764693997139,6.53543567,138.88,138.85,0.05411202]
[1764693997341,62.88,138.87,138.85,0.05411202]
[1764693997543,62.88,138.86,138.85,0.05411202]
[1764693998541,0.05513567,138.88,138.85,0.05411202]
[1764693998741,0.05513567,138.88,138.85,3.06411202]
[1764693998940,0.05513567,138.88,138.86,4.69604325]
[1764693999143,0.05513567,138.88,138.85,0.05411202]
[1764693999144,0.05513567,138.88,138.87,4.69604325]
[1764693999443,0.05513567,138.88,138.87,2.96]
[1764694000944,7.08633369,138.98,138.87,2.96]
[1764694001148,62.88,138.97,138.9,4.69799155]
[1764694001343,62.88,138.97,138.91,1.73799155]
[1764694001546,62.88,138.97,138.9,2.96]
[1764694002047,62.88,138.97,138.91,1.74014985]
[1764694002245,0.04665102,138.95,138.92,0.05491075]
[1764694002743,0.04665102,138.95,138.92,3.01491075]
[1764694002948,0.04665102,138.95,138.92,0.05491075]
[1764694003544,62.9,138.94,138.92,0.05491075]
[1764694004647,62.9,138.94,138.82,13.08487954]
[1764694004648,100.7828,138.91,138.85,6.50229138]
[1764694004852,100.79,138.9,138.81,9.46229138]
[1764694005047,107.87633369,138.9,138.83,1.75221849]
[1764694005249,100.8042,138.88,138.79,19.24229138]
[1764694005546,170.78113369,138.87,138.8,1.75305239]
[1764694005746,170.78113369,138.87,138.82,0.04730125]
[1764694005747,0.05093076,138.85,138.82,0.04730125]
[1764694006144,62.88,138.84,138.82,0.04730125]
[1764694007556,62.88,138.83,138.82,0.04730125]
[1764694008055,0.05093076,138.85,138.82,0.04730125]
[1764694008257,62.88,138.84,138.82,0.04730125]
[1764694008551,0.05093076,138.85,138.82,0.04730125]
[1764694008756,62.88,138.84,138.82,0.04730125]
[1764694009558,69.3622,138.84,138.82,0.04730125]
[1764694010659,6.4839,138.8,138.79,12.74]
[1764694010859,107.93163369,138.83,138.79,12.74]
[1764694011060,6.4836,138.81,138.79,12.74]
[1764694011447,6.53467953,138.81,138.79,12.79392672]
[1764694012061,0.05107953,138.81,138.79,12.79392672]
[1764694013749,62.86,138.8,138.79,12.79392672]
[1764694014349,62.84,138.8,138.79,12.79392672]
[1764694014756,0.05107953,138.81,138.79,15.75392672]
[1764694014953,0.05107953,138.81,138.75,13.08487954]
[1764694014954,100.8705,138.79,138.74,6.61932159]
[1764694015154,149.0,138.8,138.67,2.96]
[1764694015462,155.4842,138.8,138.72,4.72512943]
[1764694015762,63.16,138.79,138.72,2.96]
[1764694015966,0.05356707,138.77,138.74,0.04893184]
[1764694016364,63.16,138.76,138.74,3.00893184]
[1764694016559,63.21356707,138.77,138.74,3.00893184]
[1764694018157,0.05356707,138.77,138.75,1.76320289]
[1764694018358,0.05356707,138.77,138.76,1.76320289]
[1764694018563,0.05356707,138.77,138.76,2.96]
[1764694019661,0.05356707,138.77,138.74,0.04893184]
[1764694019866,0.05356707,138.77,138.74,3.00893184]
[1764694020165,0.05356707,138.77,138.74,0.04893184]
[1764694020467,63.14,138.76,138.74,0.04893184]
[1764694021869,69.626,138.76,138.74,0.04893184]
[1764694022375,63.14,138.75,138.74,0.04893184]
[1764694023657,0.05356707,138.77,138.74,3.00893184]
[1764694023865,63.17356707,138.77,138.75,1.76452196]
[1764694024063,63.17356707,138.77,138.74,3.00893184]
[1764694024263,63.17356707,138.77,138.75,1.76453763]
[1764694024665,63.17356707,138.77,138.74,3.00893184]
[1764694025161,63.17356707,138.77,138.74,0.04893184]
[1764694025869,63.12,138.76,138.74,0.04893184]
[1764694026374,64.56,138.76,138.74,0.04893184]
[1764694026682,1.44,138.76,138.65,17.0]
[1764694026866,112.92777833,138.79,138.67,1.76732669]
[1764694027064,63.16,138.78,138.68,1.76732669]
[1764694027374,6.4859,138.76,138.66,2.96]
[1764694027562,63.16,138.75,138.68,1.76612748]
[1764694027758,0.05101271,138.72,138.68,1.76612748]
[1764694028176,0.05101271,138.72,138.66,2.96]
[1764694028471,0.05101271,138.72,138.67,1.76589959]
[1764694028770,0.05101271,138.72,138.67,5.00589959]
[1764694028976,0.05101271,138.72,138.67,3.24]
[1764694029970,0.05101271,138.72,138.65,14.04]
[1764694030272,6.4893,138.69,138.65,14.04]
[1764694030464,0.04827792,138.68,138.65,17.28]
[1764694030659,0.04827792,138.68,138.65,14.04]
[1764694030660,63.14,138.67,138.65,14.04]
[1764694030863,63.16,138.66,138.65,14.04]
[1764694031273,63.16,138.66,138.6,3.24]
[1764694031570,0.0490196,138.64,138.62,5.00500737]
[1764694031775,0.04712978,138.64,138.63,3.24]
[1764694032074,0.04972284,138.65,138.63,3.24]
[1764694032276,0.0520877,138.65,138.63,3.24]
[1764694032467,0.0520877,138.65,138.54,3.24]
[1764694035571,100.9159,138.73,138.63,3.28818964]
[1764694035775,63.25547154,138.69,138.67,0.04982512]
[1764694036077,63.25547154,138.69,138.67,0.04754255]
[1764694036574,0.05547154,138.69,138.67,3.28754255]
[1764694036780,0.05547154,138.69,138.67,0.04754255]
[1764694037182,0.05547154,138.69,138.67,3.28754255]
[1764694037771,0.05547154,138.69,138.68,4.99672358]
[1764694037972,0.05547154,138.69,138.68,3.24]
[1764694038168,0.05547154,138.69,138.67,0.04754255]
[1764694038169,0.05547154,138.69,138.67,3.28754255]
[1764694039484,0.05547154,138.69,138.67,0.04754255]
[1764694040584,0.05547154,138.69,138.67,3.28754255]
[1764694040977,0.05547154,138.69,138.67,0.04754255]
[1764694041880,100.9509,138.68,138.59,3.24]
[1764694042083,100.9563,138.67,138.62,1.76009722]
[1764694042273,6.4911,138.65,138.62,1.76009722]
[1764694042478,63.18,138.64,138.62,1.76009722]
[1764694043079,0.05286476,138.64,138.62,1.76009722]
[1764694043383,63.23286476,138.64,138.62,1.76009722]
[1764694043883,63.23286476,138.64,138.59,3.24]
[1764694044082,63.23286476,138.64,138.61,1.76005386]
[1764694044487,63.21286476,138.64,138.61,1.76005386]
[1764694046492,0.05286476,138.64,138.61,5.00005386]
[1764694046689,63.21286476,138.64,138.62,5.00005386]
[1764694046894,63.21286476,138.64,138.62,3.24]
[1764694048090,63.21286476,138.64,138.57,3.24]
[1764694048288,63.21286476,138.64,138.61,1.76592934]
[1764694048485,69.70436476,138.64,138.61,1.76592934]
[1764694049186,69.70436476,138.64,138.61,5.00592934]
[1764694049379,69.70436476,138.64,138.61,3.24]
[1764694049578,0.05286476,138.64,138.61,3.24]
[1764694050491,0.05286476,138.64,138.62,5.0090201]
[1764694050689,0.05286476,138.64,138.62,3.24]
[1764694050889,0.05286476,138.64,138.58,3.24]
[1764694051095,0.05286476,138.64,138.61,1.76959162]
[1764694051695,0.05286476,138.64,138.61,5.00959162]
[1764694051993,0.05286476,138.64,138.61,3.24]
[1764694052489,0.05286476,138.64,138.62,1.77057958]
[1764694055785,0.05286476,138.64,138.61,3.24]
[1764694060494,118.0,138.72,138.64,3.09]
[1764694060703,62.96,138.71,138.64,3.09]
[1764694061396,62.96,138.71,138.61,3.09]
[1764694061591,0.04829027,138.67,138.65,0.0524504]
[1764694061793,0.04829027,138.67,138.65,3.1424504]
[1764694062496,187.339,138.78,138.65,3.1424504]
[1764694062497,86.46,138.78,138.67,3.09]
[1764694062687,6.67556066,138.81,138.7,1.77614173]
[1764694062688,12.05497833,138.81,138.7,1.77614173]
[1764694062891,12.05497833,138.81,138.68,3.09]
[1764694062892,12.05497833,138.84,138.72,3.09]
[1764694063094,12.05497833,138.84,138.73,1.77614173]
[1764694063295,62.98,138.83,138.75,1.77614173]
[1764694063494,62.98,138.83,138.74,3.09]
[1764694063695,0.0531923,138.8,138.77,0.05190695]
[1764694064092,0.0531923,138.8,138.77,3.14190695]
[1764694065906,0.0531923,138.8,138.79,3.09]
[1764694066095,12.05497833,138.9,138.79,3.09]
[1764694066296,62.96,138.89,138.81,4.85435888]
[1764694066502,62.96,138.89,138.82,1.76435888]
[1764694066703,69.4398,138.89,138.81,3.09]
[1764694066893,69.4398,138.89,138.82,1.76141202]
[1764694067094,0.05367215,138.87,138.84,0.04545841]
[1764694068104,0.05367215,138.87,138.84,3.13545841]
[1764694070009,0.05367215,138.87,138.86,3.09]
[1764694070912,0.05367215,138.87,138.84,3.13545841]
[1764694071103,0.05367215,138.87,138.85,4.84400682]
[1764694071409,0.05367215,138.87,138.85,3.09]
[1764694072710,62.86,138.93,138.87,3.09]
[1764694073705,86.54,138.95,138.87,3.09]
[1764694073706,0.05493431,138.91,138.89,0.04715123]
[1764694074307,0.05493431,138.91,138.89,3.13715123]
[1764694078511,0.05493431,138.91,138.89,0.04715123]
[1764694080010,102.27953431,138.91,138.86,13.97]
[1764694080203,100.83953431,138.91,138.86,13.97]
[1764694080403,100.7915,138.9,138.86,13.97]
[1764694080605,100.8339,138.84,138.75,3.09]
[1764694080816,62.78,138.83,138.78,1.74243274]
[1764694081010,0.05134414,138.82,138.79,0.05086413]
[1764694081314,62.78,138.81,138.79,3.13756431]
[1764694081912,0.05152408,138.82,138.79,3.13756431]
[1764694082117,62.8,138.86,138.81,1.7427638]
[1764694082318,62.8,138.86,138.82,4.8327638]
[1764694082522,62.8,138.86,138.83,3.09]
[1764694082721,62.8,138.86,138.79,3.09]
[1764694082925,62.8,138.86,138.81,4.83167617]
[1764694083227,0.04691415,138.85,138.82,4.88243445]
[1764694083533,0.04691415,138.85,138.82,0.05175848]
[1764694084433,100.8617,138.8,138.7,3.09]
[1764694084628,100.8766,138.78,138.72,1.74320044]
[1764694084830,6.4856,138.77,138.71,1.74320044]
[1764694085020,100.8766,138.78,138.71,1.74320044]
[1764694085222,100.8839,138.77,138.67,3.09]
[1764694085428,100.8766,138.78,138.71,0.04972876]
[1764694085429,0.05183223,138.73,138.71,0.04972876]
[1764694085634,62.84,138.72,138.71,0.04972876]
[1764694086525,62.84,138.72,138.64,3.09]
[1764694086730,7.06744077,138.76,138.67,4.83397194]
[1764694087036,7.06744077,138.76,138.61,7.06744077]
[1764694087037,100.9202,138.72,138.62,3.09]
[1764694087233,100.9202,138.72,138.65,1.74351464]
[1764694087434,6.4889,138.7,138.64,1.74351464]
[1764694087635,62.86,138.69,138.67,0.04696641]
[1764694088832,62.86,138.68,138.67,0.04696641]
[1764694089137,62.86,138.69,138.67,3.19696641]
[1764694089325,62.86,138.69,138.67,0.04696641]
[1764694089530,62.86,138.69,138.67,3.19696641]
[1764694089926,0.05121738,138.7,138.67,3.19696641]
[1764694090437,0.05121738,138.7,138.69,3.15]
[1764694091036,6.4854,138.77,138.7,3.15]
[1764694091238,6.4854,138.77,138.66,7.06744077]
[1764694091239,62.86,138.76,138.71,4.89284511]
[1764694091439,62.86,138.76,138.71,3.15]
[1764694092141,0.04919204,138.75,138.72,0.04868358]
[1764694092537,0.04919204,138.75,138.72,3.19868358]
[1764694093436,0.04919204,138.75,138.72,0.04868358]
[1764694093632,0.04919204,138.75,138.72,3.19868358]
[1764694094641,0.04919204,138.75,138.72,0.04868358]
[1764694096933,62.82,138.74,138.72,0.04868358]
[1764694097437,0.04919204,138.75,138.72,3.19868358]
[1764694097638,62.82,138.8,138.75,3.15]
[1764694098544,0.05240073,138.79,138.76,3.20498265]
[1764694098837,0.05240073,138.79,138.78,3.15]
[1764694100639,60.20716215,138.8,138.78,3.15]
[1764694100842,60.20716215,138.8,138.79,4.89436996]
[1764694101046,60.20716215,138.8,138.79,3.15]
[1764694101441,100.8144,138.87,138.79,3.15]
[1764694101640,62.82,138.86,138.82,0.05192276]
[1764694101945,0.05019468,138.84,138.82,0.05192276]
[1764694102145,100.88369468,138.84,138.74,3.15]
[1764694102344,62.82,138.83,138.77,1.74638577]
[1764694102542,6.4832,138.82,138.77,4.89638577]
[1764694102850,6.4832,138.82,138.78,1.74674592]
[1764694103040,0.04776719,138.81,138.79,0.04751258]
[1764694103642,0.04776719,138.81,138.79,3.19751258]
[1764694103835,62.82,138.84,138.8,4.89732874]
[1764694104035,62.82,138.84,138.77,3.15]
[1764694104247,62.82,138.84,138.79,3.15]
[1764694104552,69.3023,138.84,138.8,1.74900319]
[1764694104749,0.05439259,138.83,138.81,0.04582404]
[1764694105345,6.53709259,138.83,138.81,0.04582404]
[1764694105542,0.05439259,138.83,138.75,3.15]
[1764694105851,0.05439259,138.83,138.77,1.75169537]
[1764694106649,0.05439259,138.83,138.79,0.04911083]
[1764694106851,6.4834,138.82,138.79,0.04911083]
[1764694107045,0.05439259,138.83,138.79,0.04911083]
[1764694107247,0.05439259,138.83,138.79,3.19911083]
[1764694107455,62.82,138.82,138.79,3.19911083]
[1764694107646,62.82,138.82,138.79,0.04911083]
[1764694107852,62.82,138.82,138.72,3.15]
[1764694108040,62.82,138.82,138.74,1.75525899]
[1764694108041,69.88744077,138.82,138.74,1.75525899]
[1764694108351,6.4845,138.79,138.74,1.75525899]
[1764694108847,0.04602358,138.78,138.75,0.0520579]
[1764694109053,62.84,138.77,138.75,0.0520579]
[1764694111253,69.3255,138.77,138.75,0.0520579]
[1764694111947,62.84,138.77,138.75,0.0520579]
[1764694112749,69.3254,138.77,138.75,0.0520579]
[1764694113455,69.3254,138.77,138.66,6.54431282]
[1764694113456,100.9055,138.74,138.66,6.54431282]
[1764694113754,163.7355,138.73,138.67,1.75948384]
[1764694114149,163.7355,138.73,138.65,1.75948384]
[1764694114150,100.9275,138.71,138.65,1.75948384]
[1764694114553,6.5431861,138.69,138.67,0.04711238]
[1764694114753,62.86,138.68,138.67,0.04711238]
[1764694115655,0.0538861,138.69,138.67,3.19711238]
[1764694116056,0.0538861,138.69,138.67,4.63711238]
[1764694116249,62.86,138.72,138.69,3.15]
[1764694117158,62.90915683,138.72,138.69,3.15]
[1764694118662,62.84,138.76,138.71,3.23]
[1764694119758,0.05286858,138.75,138.72,0.04618437]
[1764694120056,0.05286858,138.75,138.72,3.13618437]
[1764694121366,62.84,138.8,138.74,3.09]
[1764694121559,62.84,138.8,138.75,4.85061545]
[1764694121760,62.84,138.8,138.75,3.09]